bitfinex/quotes_ETHUSD_20220310
["timestamp","ask_amount","ask_price","bid_price","bid_amount"]
[1646943743329,1.98509503,2609.6,2609.1,0.153342]
[1646943743533,1.98509503,2609.6,2609.0,1.1947]
[1646943745874,0.97374772,2609.1,2609.0,1.1947]
[1646943746078,1.85257472,2609.1,2608.9,1.91739]
[1646943746273,0.95885,2609.4,2608.9,1.91739]
[1646943746473,0.87878699,2609.3,2608.9,1.91739]
[1646943747076,0.87878699,2609.3,2608.9,2.02513622]
[1646943747478,2.05770846,2609.3,2608.9,1.87178422]
[1646943747682,0.87878699,2609.2,2608.9,1.87178422]
[1646943748780,0.87878699,2609.3,2608.9,1.87178422]
[1646943748980,0.95885,2609.4,2608.9,1.87178422]
[1646943748981,0.87878699,2609.1,2608.9,1.87178422]
[1646943749181,0.95885,2609.4,2608.9,1.87178422]
[1646943749381,0.87900903,2609.3,2608.9,1.87178422]
[1646943749632,0.03815423,2609.1,2608.9,1.87178422]
[1646943750631,0.03815423,2609.1,2608.9,1.87617855]
[1646943751034,0.8792969,2609.0,2608.9,2.02953155]
[1646943751632,0.8792969,2609.0,2608.9,2.02513722]
[1646943751838,0.8792969,2609.0,2608.9,1.97513722]
[1646943752436,0.8792969,2609.0,2608.9,1.99425612]
[1646943752633,0.8792969,2609.0,2608.9,1.84090312]
[1646943752835,0.8792969,2609.0,2608.9,0.15610737]
[1646943754173,0.89806938,2609.0,2608.9,0.15610737]
[1646943755077,0.89806938,2609.0,2608.9,0.30946437]
[1646943755277,0.89806938,2609.0,2608.9,0.15610737]
[1646943757825,0.89806938,2609.0,2608.9,3.65610737]
[1646943758026,0.89806938,2609.0,2608.9,4.23743981]
[1646943758225,0.89806938,2609.0,2608.9,0.80806091]
[1646943758226,0.01877248,2609.0,2608.9,0.80806091]
[1646943759226,0.87028369,2609.0,2608.9,0.80806091]
[1646943761279,0.87028369,2609.0,2608.9,0.73743981]
[1646943763989,1.62869232,2609.0,2608.9,0.0191189]
[1646943765126,0.9199595,2609.0,2608.9,0.0191189]
[1646943765326,0.9199595,2609.0,2608.9,0.74026569]
[1646943765528,1.8789695,2609.0,2608.9,0.74026569]
[1646943765728,2.58770232,2609.0,2608.9,0.0191189]
[1646943766328,2.58770232,2609.0,2608.9,0.74030699]
[1646943766534,2.58770232,2609.0,2608.9,0.0191189]
[1646943768131,1.8789695,2609.0,2608.9,0.74016041]
[1646943771285,0.9199595,2609.0,2608.9,0.74016041]
[1646943772124,0.87873583,2609.0,2608.9,0.74016041]
[1646943772924,0.87873583,2609.0,2608.9,0.0191189]
[1646943773125,0.82906002,2609.0,2608.7,0.95898]
[1646943773324,0.82906002,2609.0,2608.8,1.14444614]
[1646943774126,0.82906002,2609.0,2608.8,0.00380399]
[1646943774328,0.82906002,2609.0,2608.7,1.99856355]
[1646943774526,0.8478325,2609.0,2608.7,1.99856355]
[1646943774729,0.01877248,2609.0,2608.7,1.03980355]
[1646943775130,0.01877248,2609.0,2608.7,0.95898]
[1646943776175,1.16301247,2609.0,2608.7,0.95898]
[1646943776776,1.87174529,2609.0,2608.7,0.95898]
[1646943777080,1.87174529,2609.0,2608.7,0.00194794]
[1646943777878,1.87174529,2609.0,2608.6,1.91771]
[1646943778079,1.87174529,2609.0,2608.7,0.00439114]
[1646943778679,1.66775282,2608.9,2608.7,0.00439114]
[1646943779181,1.68565298,2608.9,2608.6,1.91771]
[1646943779380,1.68565298,2608.9,2608.7,0.00439109]
[1646943780230,1.68565298,2608.9,2608.6,1.91771]
[1646943780430,1.68565298,2608.9,2608.4,1.91801]
[1646943780636,0.05194213,2608.8,2608.7,0.00439109]
[1646943781530,0.05194213,2608.8,2608.4,0.0191211]
[1646943781730,0.70916155,2608.6,2608.4,0.0191211]
[1646943782130,0.04598684,2608.5,2608.4,0.0191211]
[1646943782337,0.95267148,2608.5,2608.4,0.0191211]
[1646943782529,1.66183303,2608.5,2608.4,0.0191211]
[1646943782931,0.95267148,2608.5,2608.4,0.0191211]
[1646943783378,1.91183148,2608.5,2608.4,0.0191211]
[1646943783783,0.05245681,2608.3,2608.2,0.0135208]
[1646943783978,1.47033048,2608.3,2608.2,2.08e-05]
[1646943784177,13.63333048,2608.3,2608.2,2.08e-05]
[1646943784377,13.88087367,2608.3,2608.2,2.08e-05]
[1646943784578,12.6545,2608.3,2608.2,2.08e-05]
[1646943784780,13.61374,2608.3,2608.2,2.08e-05]
[1646943786480,14.61374,2608.3,2608.2,2.08e-05]
[1646943788927,49.5,2608.0,2607.6,0.03989166]
[1646943789130,11.7,2607.7,2607.3,0.03277052]
[1646943789330,11.7,2607.7,2607.2,7.25e-05]
[1646943789331,11.7,2607.3,2607.2,7.25e-05]
[1646943789528,16.71998035,2607.3,2607.2,7.25e-05]
[1646943789734,15.4395485,2607.3,2607.2,7.25e-05]
[1646943790038,15.2478485,2607.3,2607.2,7.25e-05]
[1646943790231,14.5429,2607.3,2607.2,7.25e-05]
[1646943790633,16.47664687,2607.3,2607.2,7.25e-05]
[1646943790878,11.7,2607.1,2606.9,0.30989948]
[1646943791079,11.7,2607.1,2606.7,0.3870408]
[1646943791080,47.7,2606.9,2606.7,0.0044408]
[1646943791279,11.7,2606.9,2606.7,0.0044408]
[1646943791479,11.95,2606.9,2606.7,0.0044408]
[1646943791690,12.363,2606.9,2606.7,0.0044408]
[1646943792078,13.58870409,2606.8,2606.7,0.0044408]
[1646943792882,17.08870409,2606.8,2606.7,0.00881503]
[1646943793080,17.08870409,2606.8,2606.0,0.0088816]
[1646943793081,0.02931723,2606.1,2606.0,0.0088816]
[1646943793280,1.00861723,2606.1,2606.0,0.0088816]
[1646943793479,1.96874723,2606.1,2606.0,0.0088816]
[1646943793679,2.26874723,2606.1,2606.0,0.0088816]
[1646943794079,3.3048364,2606.1,2606.0,0.0088816]
[1646943794631,15.0048364,2606.1,2606.0,0.0088816]
[1646943795028,15.0048364,2606.1,2606.0,0.010914]
[1646943795232,15.0048364,2606.1,2606.0,1.4e-05]
[1646943795429,16.1675364,2606.1,2606.0,0.0177772]
[1646943795830,16.1675364,2606.1,2606.0,7.72e-05]
[1646943796030,16.6305364,2606.1,2606.0,7.72e-05]
[1646943796630,16.4678364,2606.1,2606.0,7.72e-05]
[1646943797329,11.7,2605.9,2605.8,0.05319752]
[1646943797531,16.62344,2605.9,2605.8,9.752e-05]
[1646943797833,11.7,2605.7,2605.6,0.01923]
[1646943798028,15.663,2605.7,2605.6,0.05810888]
[1646943798286,16.963,2605.7,2605.6,0.05810888]
[1646943798674,17.84304761,2605.7,2605.6,0.05810888]
[1646943799075,18.80356681,2605.7,2605.6,0.05810888]
[1646943799475,21.76409681,2605.7,2605.6,0.05810888]
[1646943799880,21.95589681,2605.7,2605.6,0.05810888]
[1646943800077,20.95589681,2605.7,2605.6,0.05810888]
[1646943800277,20.76409681,2605.7,2605.6,0.05810888]
[1646943800482,19.76409681,2605.7,2605.6,0.05810888]
[1646943801283,11.7,2605.5,2605.1,0.04103795]
[1646943801484,11.7,2605.3,2605.1,0.07949795]
[1646943801681,15.2,2605.2,2605.1,0.07949795]
[1646943801881,15.963,2605.2,2605.1,0.07949795]
[1646943802129,15.963,2605.2,2605.1,0.1046422]
[1646943802326,16.963,2605.2,2605.1,0.1046422]
[1646943802527,16.963,2605.2,2604.8,0.27712368]
[1646943802528,12.71345692,2605.1,2604.8,0.27712368]
[1646943802727,21.76336122,2605.1,2604.8,0.02712368]
[1646943802926,21.76336122,2605.1,2605.0,3.008e-05]
[1646943803235,20.76336122,2605.1,2605.0,3.008e-05]
[1646943803427,20.76336122,2605.1,2604.8,0.02712368]
[1646943803428,21.95516122,2605.1,2604.8,0.02712368]
[1646943803727,21.95516122,2605.1,2604.8,2.368e-05]
[1646943803728,12.66086,2604.9,2604.8,2.368e-05]
[1646943803928,17.11566,2604.9,2604.8,2.368e-05]
[1646943804127,17.11566,2604.9,2604.7,9.52e-05]
[1646943804128,22.11563074,2604.9,2604.7,9.52e-05]
[1646943804331,15.2,2604.8,2604.7,9.52e-05]
[1646943804529,15.71223947,2604.8,2604.7,9.52e-05]
[1646943804732,15.71223947,2604.8,2604.4,0.02960098]
[1646943804733,16.71223947,2604.8,2604.4,0.02960098]
[1646943805032,11.7,2604.6,2604.4,0.02960098]
[1646943805230,16.663,2604.5,2604.4,0.02960098]
[1646943805432,17.52955409,2604.5,2604.4,0.02960098]
[1646943805632,18.52955409,2604.5,2604.4,0.02960098]
[1646943806074,18.52955409,2604.5,2604.3,0.02086009]
[1646943806075,35.2,2604.4,2604.3,0.02086009]
[1646943806376,14.463,2604.4,2604.3,0.02086009]
[1646943806575,11.7,2604.2,2604.1,0.06201144]
[1646943806776,12.463,2604.2,2604.1,0.09498744]
[1646943807981,2.9221456,2604.3,2604.1,0.09498744]
[1646943808176,2.1858512,2604.8,2604.1,0.09498744]
[1646943808177,11.7,2604.6,2604.1,0.09498744]
[1646943808778,1.9213139,2604.8,2604.1,0.09498744]
[1646943808979,13.6213139,2604.8,2604.1,0.09498744]
[1646943809182,2.2059601,2604.9,2604.1,1.05558744]
[1646943809379,2.6955,2605.0,2604.1,1.05558744]
[1646943809380,3.65596,2605.0,2604.1,1.05558744]
[1646943809632,2.6955,2605.0,2604.1,1.05558744]
[1646943810030,0.04719872,2604.4,2604.1,2.01610744]
[1646943810233,0.04719872,2604.4,2604.3,1.14052226]
[1646943810430,0.04719872,2604.4,2604.1,1.05558744]
[1646943810731,0.04719872,2604.4,2604.1,0.09935585]
[1646943811431,0.04424917,2604.5,2604.1,0.09935585]
[1646943811634,0.04424917,2604.5,2604.1,0.09498744]
[1646943811829,0.04424917,2604.5,2604.2,1.14547602]
[1646943812030,0.04424917,2604.5,2604.2,2.13904202]
[1646943813030,0.023464,2604.5,2604.2,2.14341044]
[1646943813284,0.00681414,2604.5,2604.2,0.99793442]
[1646943814075,0.00681414,2604.5,2604.2,0.993566]
[1646943814276,0.00681414,2604.5,2604.2,0.99793442]
[1646943814680,0.04708289,2604.3,2604.2,0.99793442]
[1646943815180,0.04708289,2604.3,2604.2,0.993566]
[1646943815483,0.1918,2605.2,2604.4,0.96045]
[1646943815682,1.0,2605.6,2604.5,0.96036]
[1646943815882,1.13203456,2605.8,2604.5,1.53526]
[1646943816185,0.00423456,2605.8,2604.5,1.53526]
[1646943816381,0.97554433,2606.0,2605.3,0.9601]
[1646943816583,0.00248772,2605.8,2605.3,1.9202]
[1646943817031,0.9602566,2605.7,2604.9,0.38464193]
[1646943817231,0.00248772,2605.8,2604.9,0.3831]
[1646943817430,0.00248772,2605.8,2605.1,1.03655668]
[1646943817431,0.96265772,2605.8,2605.1,1.03655668]
[1646943817630,0.88117241,2605.6,2604.9,1.3433]
[1646943817834,0.00248786,2605.8,2604.9,1.3433]
[1646943818031,0.00248786,2605.8,2605.1,0.96024]
[1646943818232,0.00248786,2605.8,2605.2,0.08420365]
[1646943818430,0.00248786,2605.8,2605.2,2.38728365]
[1646943818630,0.00248786,2605.8,2605.3,0.08502022]
[1646943818834,0.02931723,2606.1,2605.4,0.0776153]
[1646943819031,0.00437045,2605.8,2605.5,2.1300257]
[1646943819231,0.00437045,2605.8,2605.6,0.07202164]
[1646943819429,0.03765627,2605.7,2605.6,0.07202164]
[1646943821280,0.03765627,2605.7,2605.6,0.98096385]
[1646943823278,1.13502596,2606.4,2605.6,0.98096385]
[1646943823477,1.13502596,2606.4,2605.8,0.95994]
[1646943825133,0.00248452,2606.2,2605.8,0.95994]
[1646943825932,0.95996,2606.3,2605.8,0.95994]
[1646943826333,0.00248452,2606.1,2605.8,0.95994]
[1646943827133,0.95996,2606.3,2605.8,0.95994]
[1646943827535,0.00437047,2606.1,2605.8,0.95994]
[1646943828376,0.1918,2606.3,2605.8,1.91982]
[1646943828577,1.13502596,2606.4,2606.0,0.95988]
[1646943828779,0.00437047,2606.1,2606.0,0.95988]
[1646943829581,1.13502596,2606.4,2606.0,0.95988]
[1646943829780,0.0043704,2606.2,2606.0,0.95988]
[1646943830383,0.05465371,2606.2,2606.0,0.95988]
[1646943830781,0.05028331,2606.2,2606.0,0.95988]
[1646943831183,0.05465367,2606.2,2606.0,0.95988]
[1646943832029,0.05028331,2606.2,2606.0,0.95988]
[1646943832430,0.05450945,2606.2,2606.0,0.95988]
[1646943833032,0.05450945,2606.2,2605.9,1.26280785]
[1646943833233,0.05028331,2606.2,2605.9,1.26280785]
[1646943833433,0.05450945,2606.2,2605.9,1.26280785]
[1646943833838,0.05450945,2606.2,2606.0,0.95988]
[1646943834437,0.05028331,2606.2,2606.0,0.95988]
[1646943834937,0.05450945,2606.2,2606.0,0.95988]
[1646943835791,0.05028331,2606.2,2606.0,0.95988]
[1646943835981,0.05434369,2606.2,2606.0,0.95988]
[1646943836182,0.03774369,2606.2,2606.1,0.07507479]
[1646943836784,0.03368331,2606.2,2606.1,0.07507479]
[1646943839637,0.04956035,2606.2,2606.0,0.95988]
[1646943840636,0.04956035,2606.2,2605.4,4.71985]
[1646943840637,0.07328132,2605.9,2605.4,4.71985]
[1646943840935,33.87100308,2606.1,2605.3,0.1918]
[1646943840936,0.87100308,2605.8,2605.3,0.1918]
[1646943841134,0.87100308,2605.7,2605.3,0.1918]
[1646943841333,0.0595412,2605.6,2605.3,0.1918]
[1646943841733,0.4918,2606.0,2605.3,0.1918]
[1646943841734,1.18033375,2605.4,2605.3,0.1918]
[1646943843783,1.18033375,2605.4,2605.0,0.96398692]
[1646943843986,1.18033375,2605.4,2604.9,1.92035]
[1646943844383,1.18033375,2605.4,2605.0,0.00377692]
[1646943844384,0.06337724,2605.3,2605.0,0.00377692]
[1646943845284,0.06337724,2605.3,2604.6,0.69291179]
[1646943845485,0.91488538,2605.0,2604.6,0.69291179]
[1646943845684,0.06125969,2604.9,2604.6,0.69291179]
[1646943846687,0.06125969,2604.9,2604.6,0.69669047]
[1646943847728,0.06125969,2604.9,2604.6,0.69291179]
[1646943847930,0.06125969,2604.9,2604.6,0.69669047]
[1646943848929,0.06125969,2604.9,2604.3,1.953736]
[1646943849130,1.21352969,2604.9,2604.6,0.00377881]
[1646943849331,0.06176666,2604.8,2604.6,0.00377881]
[1646943850133,0.06176666,2604.8,2604.3,0.032976]
[1646943850134,1.11216633,2604.4,2604.3,0.032976]
[1646943850533,0.96055,2604.7,2604.3,0.032976]
[1646943850790,0.27183992,2604.8,2604.4,0.69323397]
[1646943850981,0.05707005,2604.7,2604.4,0.54323397]
[1646943851178,0.21007326,2604.8,2604.5,0.54323397]
[1646943851380,0.21007326,2604.8,2604.6,4.04323397]
[1646943851381,0.01827326,2604.8,2604.6,4.04323397]
[1646943851580,0.01827326,2604.8,2604.7,4.99531083]
[1646943851782,0.01827326,2604.8,2604.7,1.49531083]
[1646943853082,0.00653238,2604.9,2604.7,1.49531083]
[1646943853281,0.00653238,2604.9,2604.7,0.95207686]
[1646943853681,0.00653238,2604.9,2604.5,8.52651113]
[1646943853881,0.00653238,2604.9,2604.7,0.00377876]
[1646943854738,1.01282898,2604.8,2604.7,0.00377876]
[1646943854943,1.01282898,2604.8,2604.3,0.032976]
[1646943854944,0.06856694,2604.7,2604.3,0.032976]
[1646943855144,0.06856694,2604.7,2604.3,0.04809329]
[1646943855737,0.87389898,2604.4,2604.3,0.04809329]
[1646943855937,0.93251447,2604.4,2604.3,0.04809329]
[1646943856140,0.93251447,2604.4,2604.3,0.032976]
[1646943859785,0.96819488,2604.4,2604.3,0.032976]
[1646943859988,0.90957939,2604.4,2604.3,0.032976]
[1646943864436,0.03568041,2604.4,2604.3,0.032976]
[1646943865037,0.01758041,2604.4,2604.3,0.032976]
[1646943865237,0.01758041,2604.4,2604.3,0.957276]
[1646943865440,0.03568041,2604.4,2604.3,0.957276]
[1646943865636,0.00499013,2604.4,2604.3,0.957276]
[1646943866280,0.00499013,2604.4,2604.3,0.032976]
[1646943867284,1.20967727,2604.4,2604.3,0.032976]
[1646943870136,1.27368458,2604.4,2604.3,0.032976]
[1646943870642,1.23548852,2604.4,2604.3,0.032976]
[1646943870839,5.50728852,2604.4,2604.3,0.032976]
[1646943871037,6.38146808,2604.4,2604.3,0.032976]
[1646943872038,3.07326808,2604.4,2604.3,0.032976]
[1646943873142,0.00826407,2604.0,2603.8,0.03906486]
[1646943873382,0.00826407,2604.0,2603.8,0.08035542]
[1646943874185,0.00826407,2604.0,2603.8,0.06370058]
[1646943874585,1.20635113,2604.0,2603.8,0.06370058]
[1646943875586,1.20635113,2604.0,2603.8,0.06765473]
[1646943876185,0.00826407,2604.0,2603.8,0.06765473]
[1646943876385,0.00826407,2604.0,2603.8,0.06370058]
[1646943876785,0.00826407,2604.0,2603.8,0.06765473]
[1646943877327,0.00826407,2604.0,2603.8,1.08508876]
[1646943877527,0.00826407,2604.0,2603.8,0.06765473]
[1646943877727,0.00826407,2604.0,2603.8,0.06370058]
[1646943877929,0.00826407,2604.0,2603.9,0.01308199]
[1646943878333,0.00826407,2604.0,2603.9,0.70791358]
[1646943878835,0.00826407,2604.0,2603.9,0.74920414]
[1646943879030,0.00826407,2604.0,2603.9,1.64879668]
[1646943879229,0.03903483,2604.0,2603.9,1.64879668]
[1646943880889,0.03903483,2604.0,2603.9,2.11179668]
[1646943881285,0.00883483,2604.0,2603.9,14.19489668]
[1646943881581,0.00883483,2604.0,2603.9,2.49489668]
[1646943882681,0.00883483,2604.0,2603.9,14.19489668]
[1646943882886,0.00063483,2604.0,2603.9,13.99564696]
[1646943883083,0.07459132,2605.3,2604.2,0.96004]
[1646943883283,0.00376403,2605.3,2604.7,0.3831]
[1646943883486,0.00376403,2605.3,2604.9,0.3831]
[1646943883681,0.87102626,2605.7,2605.0,1.54093159]
[1646943883984,0.87102626,2605.7,2605.2,1.15029781]
[1646943884184,0.87102626,2605.7,2605.3,0.69483159]
[1646943884385,0.87102626,2605.7,2605.3,3.57452159]
[1646943884636,0.87102626,2605.7,2605.4,0.69483159]
[1646943885034,0.06861876,2605.9,2605.4,0.69483159]
[1646943885237,0.87238109,2605.8,2605.4,0.69483159]
[1646943885435,0.87238109,2605.7,2605.4,1.65466159]
[1646943885636,0.87238109,2605.6,2605.5,0.69483159]
[1646943886039,0.06100976,2605.9,2605.5,0.69483159]
[1646943886235,0.87238109,2605.8,2605.5,0.69483159]
[1646943886435,0.00438604,2605.7,2605.5,0.69483159]
[1646943887236,0.06100976,2605.9,2605.5,0.69483159]
[1646943887437,0.87207115,2605.8,2605.5,0.69483159]
[1646943887639,0.004386,2605.7,2605.4,0.95983]
[1646943887838,0.87207115,2605.6,2605.4,0.95983]
[1646943888493,0.05738875,2605.9,2605.5,0.69716916]
[1646943888697,2.52124143,2606.3,2605.5,0.69716916]
[1646943888698,0.87193019,2605.8,2605.6,0.95973]
[1646943888895,0.87193019,2605.7,2605.6,0.95973]
[1646943889294,0.87193019,2606.1,2605.6,0.95973]
[1646943889493,0.8719288,2606.0,2605.6,0.95973]
[1646943889693,0.8719288,2605.9,2605.6,0.95973]
[1646943889893,0.06371845,2606.2,2605.7,0.69679222]
[1646943890093,0.00438582,2606.0,2605.7,0.69679222]
[1646943890294,0.01952346,2605.9,2605.7,0.69679222]
[1646943890894,0.01952346,2605.9,2605.6,0.95973]
[1646943891297,0.02377775,2605.9,2605.6,0.95973]
[1646943891904,0.02377775,2605.9,2605.3,3.17773294]
[1646943892148,0.02377775,2605.9,2605.3,1.2039]
[1646943892149,0.0655122,2605.7,2605.3,1.2039]
[1646943892349,0.8709283,2605.6,2605.0,3.2308946]
[1646943892547,0.8709283,2605.6,2605.1,0.69654635]
[1646943892749,0.0655122,2605.7,2605.1,0.69654635]
[1646943893051,0.02377778,2605.9,2605.3,1.10352956]
[1646943893249,2.5,2605.5,2605.4,0.69654635]
[1646943893448,2.5,2605.5,2604.9,5.30874193]
[1646943893449,2.5,2605.5,2604.9,5.3072]
[1646943893649,0.77454986,2605.3,2605.0,0.69641334]
[1646943893852,0.77454986,2605.3,2604.7,2.82039536]
[1646943893853,0.77454986,2605.3,2605.1,0.69641334]
[1646943894050,0.05877239,2605.2,2604.7,2.7553]
[1646943894258,1.0654072,2605.2,2604.9,0.96004]
[1646943894453,0.05714009,2605.1,2605.0,0.69635733]
[1646943894653,0.05714009,2605.1,2604.5,3.59942539]
[1646943894855,0.05714009,2605.1,2604.6,0.69646426]
[1646943895255,0.05714009,2605.1,2604.8,0.9601]
[1646943895455,0.05714009,2605.1,2604.9,0.69646426]
[1646943895654,0.05714009,2605.1,2604.9,2.61650426]
[1646943895884,0.05714009,2605.1,2604.9,1.92004]
[1646943899095,0.0765238,2605.1,2604.9,1.92004]
[1646943900338,0.0765238,2605.1,2604.8,0.9601]
[1646943900539,0.0765238,2605.1,2604.4,1.92032]
[1646943900744,0.06468187,2604.9,2604.5,0.69645887]
[1646943900941,0.01938371,2605.1,2604.5,0.69645887]
[1646943901241,1.17767265,2604.9,2604.5,0.69645887]
[1646943901439,0.05745617,2604.8,2604.5,0.69645887]
[1646943901841,0.05745617,2604.8,2604.1,3.44551249]
[1646943902039,0.05745617,2604.8,2604.2,0.71265702]
[1646943902239,0.05745617,2604.8,2604.3,0.69634043]
[1646943903138,0.05745617,2604.8,2604.2,0.69634043]
[1646943903386,1.920857,2604.8,2604.3,0.69634043]
[1646943903585,0.05919527,2604.7,2604.4,0.69634043]
[1646943903792,1.15549634,2604.2,2604.1,1.00578974]
[1646943903986,1.15549634,2604.2,2604.1,1.70202676]
[1646943904191,1.15549634,2604.2,2604.1,1.69794758]
[1646943904589,1.15549634,2604.2,2604.1,1.70202676]
[1646943905391,1.15549634,2604.2,2604.1,1.69794758]
[1646943905590,1.15549634,2604.2,2604.1,0.73752758]
[1646943905990,1.1539174,2604.2,2604.1,0.73752758]
[1646943907833,1.1539174,2604.2,2604.1,0.75052103]
[1646943909041,1.15243,2604.8,2604.1,0.75052103]
[1646943909241,0.86974124,2604.7,2604.2,0.69623702]
[1646943909841,4.36974124,2604.7,2604.2,0.69623702]
[1646943910040,1.15243,2604.8,2604.2,0.69623702]
[1646943910242,1.16140761,2604.3,2604.2,1.65660702]
[1646943911281,1.16140761,2604.3,2604.2,0.96037]
[1646943912884,1.16140761,2604.3,2604.2,1.65633579]
[1646943913283,0.1918,2604.7,2604.2,1.66928498]
[1646943913483,0.1918,2604.7,2604.3,0.69601254]
[1646943914284,0.96042,2604.8,2604.3,0.69601254]
[1646943914534,1.1699,2605.0,2604.8,0.85273365]
[1646943914739,1.6092,2605.2,2604.8,1.56393365]
[1646943914935,0.77865196,2605.3,2604.8,1.56393365]
[1646943914936,0.77454986,2605.3,2604.8,1.56393365]
[1646943915138,0.77454986,2605.3,2604.9,0.69587499]
[1646943915338,1.81975375,2605.3,2604.9,0.69587499]
[1646943915637,0.06728298,2605.2,2604.9,1.65595499]
[1646943915841,0.06728298,2605.2,2604.9,0.96008]
[1646943916640,0.06728298,2605.2,2604.9,1.92014]
[1646943917438,0.06728298,2605.2,2605.0,0.69588198]
[1646943917944,0.06728298,2605.2,2605.0,2.61601198]
[1646943918143,0.77865093,2605.3,2605.1,1.15888198]
[1646943918379,0.77865093,2605.3,2605.2,0.69588198]
[1646943918583,0.77454986,2605.3,2605.2,0.69588198]
[1646943918782,0.77865104,2605.3,2605.2,1.8243942]
[1646943919587,0.77865104,2605.3,2605.2,2.2873942]
[1646943919789,0.77454986,2605.3,2605.2,2.2873942]
[1646943920586,0.77454986,2605.3,2605.2,17.8704942]
[1646943920788,0.77454986,2605.3,2605.2,18.8704942]
[1646943921588,0.77454986,2605.3,2605.2,21.8704942]
[1646943922436,0.77454986,2605.3,2605.2,18.8704942]
[1646943922832,0.77454986,2605.3,2605.2,21.8704942]
[1646943923233,0.77454986,2605.3,2605.2,18.4873942]
[1646943923435,0.77454986,2605.3,2605.2,1.15888198]
[1646943923634,0.77454986,2605.3,2605.2,0.69588198]
[1646943924941,0.81698563,2605.3,2605.2,0.69588198]
[1646943928085,0.81604782,2605.3,2605.2,0.69588198]
[1646943931138,0.77454986,2605.3,2605.2,0.69588198]
[1646943931839,0.77454986,2605.3,2605.2,4.19588198]
[1646943933484,0.77454986,2605.3,2605.2,0.69588198]
[1646943934287,0.77454986,2605.3,2605.2,4.19588198]
[1646943934691,0.81685714,2605.3,2605.2,4.38768198]
[1646943935592,0.81685714,2605.3,2605.2,0.88768198]
[1646943936392,0.81685714,2605.3,2605.2,0.69588198]
[1646943949895,0.81685714,2605.3,2605.2,0.66739841]
[1646943949896,0.78837357,2605.3,2605.2,0.66739841]
[1646943950094,0.78837357,2605.3,2604.8,3.13268972]
[1646943951296,0.79248276,2605.3,2604.8,3.13268972]
[1646943952136,0.78837357,2605.3,2604.8,3.13268972]
[1646943952336,0.79255602,2605.3,2604.8,3.13268972]
[1646943953142,0.79255602,2605.3,2604.8,2.00452365]
[1646943953347,0.78837357,2605.3,2604.8,2.00452365]
[1646943953543,0.79255602,2605.3,2604.8,2.00452365]
[1646943954546,0.77454986,2605.3,2604.8,2.00452365]
[1646943954744,0.77873231,2605.3,2604.8,2.00452365]
[1646943954945,0.77873231,2605.3,2604.8,1.81272365]
[1646943955547,0.77873231,2605.3,2604.8,2.51874512]
[1646943955794,0.77454986,2605.3,2604.8,1.81272365]
[1646943955990,0.77454986,2605.3,2605.1,0.94873087]
[1646943956187,0.77864297,2605.3,2605.1,1.90874087]
[1646943956987,0.06963187,2605.2,2605.1,1.90874087]
[1646943958387,0.06963187,2605.2,2605.1,0.96001]
[1646943959534,0.06963187,2605.2,2605.1,2.04240931]
[1646943961540,0.06963187,2605.2,2605.1,0.96001]
[1646943968639,0.06963187,2605.2,2605.1,16.16001]
[1646943968843,0.77864871,2605.3,2605.1,16.16001]
[1646943969040,0.77864871,2605.3,2605.2,15.3918]
[1646943969041,0.77454986,2605.3,2605.2,15.3918]
[1646943969339,0.77864871,2605.3,2605.2,15.3918]
[1646943969941,0.77864871,2605.3,2605.2,17.0516647]
[1646943970241,0.77454986,2605.3,2605.2,17.0516647]
[1646943970442,0.77454986,2605.3,2605.2,17.98271217]
[1646943970888,0.77337048,2605.3,2605.2,17.98271217]
[1646943972088,0.06592846,2605.9,2605.4,12.65967]
[1646943972290,0.86176219,2605.8,2605.7,11.7]
[1646943972488,0.86176219,2605.8,2605.7,16.8853638]
[1646943973891,0.06592846,2605.9,2605.7,17.59523572]
[1646943974094,0.07002696,2605.9,2605.8,13.39551764]
[1646943974290,0.0040985,2605.9,2605.8,17.85510074]
[1646943974938,0.07440431,2606.1,2605.8,17.85510074]
[1646943975140,0.86115744,2606.0,2605.9,12.4000638]
[1646943975340,0.86525588,2606.0,2605.9,12.4000638]
[1646943975644,0.86501809,2606.0,2605.9,12.4000638]
[1646943975843,0.07356596,2606.5,2606.2,0.84205229]
[1646943976042,0.07356596,2606.5,2606.3,0.7000638]
[1646943976043,0.86102107,2606.4,2606.3,0.7000638]
[1646943976441,0.86102107,2606.4,2606.3,12.4000638]
[1646943976647,0.86102107,2606.4,2606.3,0.7000638]
[1646943977843,0.86102107,2606.4,2606.2,0.84205229]
[1646943978043,0.92340394,2606.3,2606.2,0.84205229]
[1646943978295,0.92340394,2606.3,2606.2,1.55618286]
[1646943982741,0.92340394,2606.3,2606.2,13.25618286]
[1646943982942,0.92340394,2606.3,2606.2,16.75618286]
[1646943983141,0.00439784,2606.4,2606.2,17.21918286]
[1646943983339,1.6041,2606.9,2606.3,12.41413057]
[1646943983340,0.07403236,2606.8,2606.3,12.41413057]
[1646943983540,0.07403236,2606.8,2606.2,5.76335229]
[1646943983541,0.85968053,2606.7,2606.5,11.7]
[1646943983739,1.1507,2607.0,2606.5,11.7]
[1646943983740,0.85968053,2606.6,2606.5,11.7]
[1646943983939,0.85968053,2606.6,2606.5,13.37232462]
[1646943984139,0.85968053,2606.9,2606.5,14.28812538]
[1646943984346,0.85968053,2606.8,2606.6,12.41298462]
[1646943984541,0.85968053,2606.7,2606.6,11.7]
[1646943984746,0.85968053,2606.7,2606.6,12.41244487]
[1646943984944,0.05735023,2606.7,2606.6,12.41244487]
[1646943985344,0.91703076,2606.7,2606.6,12.41244487]
[1646943985545,0.91703076,2606.7,2606.6,0.71244487]
[1646943985998,0.05872723,2606.6,2606.5,1.91858]
[1646943986196,0.85968053,2606.6,2606.5,2.63076858]
[1646943986596,0.85968053,2606.7,2606.5,3.59014528]
[1646943986797,0.85968053,2606.7,2606.5,14.5779567]
[1646943987000,0.85968053,2606.7,2606.5,18.0779567]
[1646943987197,0.0044014,2606.7,2606.5,18.0779567]
[1646943987398,0.85968053,2606.6,2606.5,19.31126367]
[1646943987597,0.0044014,2606.7,2606.5,20.02343552]
[1646943987799,0.0044014,2606.7,2606.6,15.91217185]
[1646943988198,2.45397847,2607.4,2606.6,14.33085185]
[1646943988397,2.45397847,2607.4,2606.6,1.91868]
[1646943988398,2.77104811,2607.3,2606.6,1.91868]
[1646943988598,0.85780668,2607.2,2606.6,1.91868]
[1646943989198,0.85780668,2607.2,2606.8,0.95934]
[1646943989399,1.08909826,2607.0,2606.8,0.95934]
[1646943989653,1.08909826,2607.0,2606.6,1.97435556]
[1646943989654,0.85780668,2606.9,2606.6,0.05567556]
[1646943990745,2.78161223,2606.9,2606.6,0.05567556]
[1646943990948,1.82182223,2606.9,2606.6,0.05567556]
[1646943991349,0.85780668,2606.8,2606.6,0.05567556]
[1646943992152,0.85780668,2606.7,2606.6,0.05567556]
[1646943993299,0.00440562,2606.8,2606.6,0.05567556]